bitfinex-derivatives/quotes_SOLF0:USTF0_20241230
["timestamp","ask_amount","ask_price","bid_price","bid_amount"]
[1735570829774,5.24,188.11,187.99,1.6144]
[1735570830170,32.00048674,188.13,187.99,1.6144]
[1735570830671,5.24,188.15,187.99,1.6144]
[1735570830870,32.00048674,188.1,187.92,33.62458674]
[1735570831072,32.00048674,188.07,187.92,33.62458674]
[1735570831272,1.5977,188.06,187.92,33.62458674]
[1735570831576,1.5977,188.06,187.92,1.6241]
[1735570832466,1.5977,188.06,187.92,33.62458674]
[1735570832867,32.00048674,188.04,187.91,1.7446]
[1735570834073,1.5977,188.06,187.95,34.66708674]
[1735570834366,37.24048674,188.13,187.98,32.00048674]
[1735570834572,37.24048674,188.13,187.99,2.6661]
[1735570834768,5.24,188.13,187.99,2.6661]
[1735570834972,5.24,188.13,187.98,32.00048674]
[1735570835675,5.24,188.13,187.99,2.6661]
[1735570835881,3.2336,188.14,187.99,4.2894]
[1735570836177,32.00048674,188.13,188.0,1.6779]
[1735570836479,32.00048674,188.13,187.99,1.6233]
[1735570836872,32.00048674,188.13,187.99,4.2893]
[1735570837079,3.2336,188.14,187.99,1.6233]
[1735570837277,3.2336,188.14,188.01,32.00048674]
[1735570837278,1.622,188.14,188.01,32.00048674]
[1735570837479,1.6021,188.18,188.04,32.00048674]
[1735570837682,1.6021,188.18,188.05,1.6764]
[1735570837881,1.6021,188.18,188.07,32.00048674]
[1735570838078,37.24048674,188.22,188.07,34.66538674]
[1735570838776,1.6545,188.23,188.08,5.24]
[1735570838975,1.6545,188.23,188.1,32.00048674]
[1735570839176,5.24,188.26,188.1,32.00048674]
[1735570839375,1.5905,188.27,188.13,34.66458674]
[1735570839587,1.5905,188.27,188.13,32.00048674]
[1735570839789,3.2453,188.27,188.13,32.00048674]
[1735570840081,1.6548,188.27,188.17,32.00048674]
[1735570840277,32.00048674,188.31,188.17,32.00048674]
[1735570840778,33.65528674,188.34,188.17,32.00048674]
[1735570840984,1.6548,188.34,188.2,32.00048674]
[1735570841185,32.00048674,188.37,188.23,32.00048674]
[1735570841384,6.8875,188.38,188.23,32.00048674]
[1735570841681,32.00048674,188.31,188.18,3.3128]
[1735570841885,32.00048674,188.34,188.2,32.00048674]
[1735570842182,32.00048674,188.37,188.2,32.00048674]
[1735570842379,32.00048674,188.37,188.23,32.00048674]
[1735570842589,32.00048674,188.34,188.2,32.00048674]
[1735570843383,32.00048674,188.37,188.2,32.00048674]
[1735570843680,32.00048674,188.4,188.23,32.00048674]
[1735570843984,1.6762,188.44,188.23,32.00048674]
[1735570843985,38.87258674,188.43,188.29,32.00048674]
[1735570844381,1.6762,188.44,188.29,32.00048674]
[1735570844582,6.8548,188.45,188.3,1.7106]
[1735570844885,6.8548,188.45,188.3,6.9106]
[1735570845085,32.00048674,188.43,188.3,6.9106]
[1735570845475,6.8548,188.45,188.3,6.9106]
[1735570845878,6.8548,188.45,188.31,2.6616]
[1735570846077,1.6548,188.45,188.32,32.00048674]
[1735570847083,32.00048674,188.46,188.32,32.00048674]
[1735570847494,1.6059,188.48,188.32,32.00048674]
[1735570847682,1.6059,188.48,188.35,32.00048674]
[1735570847984,32.00048674,188.52,188.36,2.6609]
[1735570848178,32.00048674,188.52,188.38,32.00048674]
[1735570848374,32.00048674,188.49,188.32,32.00048674]
[1735570848581,32.00048674,188.49,186.61,51.72488369]
[1735570848582,32.00048674,188.43,188.1,36.66773639]
[1735570848784,32.00048674,188.4,188.25,32.00048674]
[1735570848982,1.6467,188.42,188.26,5.0631]
[1735570849786,1.6467,188.42,188.28,32.00048674]
[1735570850182,1.6467,188.42,188.29,2.6618]
[1735570850382,1.6467,188.42,188.28,32.00048674]
[1735570850784,1.6467,188.42,188.28,34.66238674]
[1735570851186,32.00048674,188.46,188.31,32.00048674]
[1735570851381,32.00048674,188.49,188.34,32.00048674]
[1735570851584,32.00048674,188.49,188.31,32.00048674]
[1735570851884,32.00048674,188.49,188.32,5.18]
[1735570852481,32.00048674,188.49,188.34,32.00048674]
[1735570852684,32.00048674,188.49,188.35,1.6477]
[1735570852988,5.18,188.52,188.31,32.00048674]
[1735570852989,32.00048674,188.46,188.31,32.00048674]
[1735570853186,32.00048674,188.43,188.28,32.00048674]
[1735570853689,5.18,188.45,188.28,32.00048674]
[1735570856689,5.18,188.45,188.31,32.00048674]
[1735570857094,5.18,188.47,188.31,32.00048674]
[1735570857989,32.00048674,188.46,188.28,32.00048674]
[1735570858387,33.61008674,188.46,188.28,32.00048674]
[1735570858691,32.00048674,188.37,188.26,3.394]
[1735570858892,32.00048674,188.34,188.19,32.00048674]
[1735570859095,32.00048674,188.31,188.16,32.00048674]
[1735570859297,5.18,188.3,188.15,1.6215]
[1735570859797,5.18,188.3,188.16,32.00048674]
[1735570860190,5.18,188.3,188.15,1.6215]
[1735570860191,1.6772,188.33,188.19,32.00048674]
[1735570860496,5.18,188.35,188.19,32.00048674]
[1735570860699,5.18,188.35,188.22,34.66318674]
[1735570860899,32.00048674,188.4,188.23,3.2972]
[1735570861197,5.18,188.39,188.23,3.2972]
[1735570861397,5.18,188.39,188.24,1.7071]
[1735570861901,37.18048674,188.43,188.28,32.00048674]
[1735570862111,5.18,188.43,188.28,32.00048674]
[1735570862298,32.00048674,188.4,188.25,32.00048674]
[1735570862502,32.00048674,188.4,188.24,1.7071]
[1735570863099,32.00048674,188.4,188.25,32.00048674]
[1735570863298,1.7047,188.42,188.28,32.00048674]
[1735570863506,32.00048674,188.43,188.28,32.00048674]
[1735570863797,8.4668,188.45,188.29,2.6617]
[1735570863997,1.6772,188.45,188.31,32.00048674]
[1735570864204,32.00048674,188.46,188.31,32.00048674]
[1735570864405,32.00048674,188.46,188.29,5.18]
[1735570864899,1.7083,188.48,188.29,5.18]
[1735570865104,6.8883,188.48,188.29,5.18]
[1735570865299,6.8883,188.48,188.32,2.6614]
[1735570865499,1.7083,188.48,188.33,33.58638674]
[1735570865701,32.00048674,188.49,188.34,3.193]
[1735570866004,1.7477,188.53,188.36,32.00048674]
[1735570866005,32.00048674,188.52,188.36,32.00048674]
[1735570866401,37.18048674,188.52,188.36,32.00048674]
[1735570866903,37.18048674,188.52,188.36,37.18048674]
[1735570867103,37.18048674,188.52,188.34,3.193]
[1735570867104,32.00048674,188.46,188.34,3.193]
[1735570867299,5.18,188.45,188.34,3.193]
[1735570867500,32.00048674,188.43,188.26,5.18]
[1735570867798,5.18,188.45,188.27,1.6142]
[1735570867799,32.00048674,188.4,188.27,1.6142]
[1735570867994,32.00048674,188.37,188.27,1.6142]
[1735570868201,37.18048674,188.37,188.24,3.2734]
[1735570868505,32.00048674,188.31,188.16,32.00048674]
[1735570869099,32.00048674,188.31,188.14,4.8876]
[1735570869400,32.00048674,188.28,188.14,4.8876]
[1735570870502,32.00048674,188.28,188.07,32.00048674]
[1735570870503,32.00048674,188.25,188.07,32.00048674]
[1735570870803,32.00048674,188.22,188.08,3.4244]
[1735570871004,5.02,188.22,188.08,3.4244]
[1735570871401,32.00048674,188.19,188.08,3.4244]
[1735570871598,32.00048674,188.16,188.03,38.22084061]
[1735570871905,5.02,188.15,188.03,38.22084061]
[1735570872303,5.02,188.15,187.99,7.32096036]
[1735570872304,32.00048674,188.13,187.99,7.32096036]
[1735570873297,32.00048674,188.1,187.99,7.32096036]
[1735570873911,32.00048674,188.13,187.95,35.42488674]
[1735570874109,32.00048674,188.13,187.98,32.00048674]
[1735570875501,5.02,188.15,187.99,5.02]
[1735570875710,5.02,188.15,188.01,32.00048674]
[1735570876312,5.02,188.2,188.04,32.00048674]
[1735570876510,32.00048674,188.22,188.04,32.00048674]
[1735570876511,5.02,188.21,188.04,32.00048674]
[1735570876707,5.02,188.21,188.01,32.00048674]
[1735570877007,5.02,188.21,188.04,32.00048674]
[1735570877200,5.02,188.21,188.05,1.6503]
[1735570877601,32.00048674,188.19,188.06,1.732]
[1735570877908,32.00048674,188.13,187.98,32.00048674]
[1735570878213,5.02,188.12,187.95,35.38278674]
[1735570878811,5.02,188.12,188.0,2.6657]
[1735570879014,5.02,188.12,187.98,32.00048674]
[1735570879414,5.02,188.17,188.01,32.00048674]
[1735570879715,5.02,188.18,188.04,32.00048674]
[1735570880114,5.02,188.18,188.05,1.7013]
[1735570880504,5.02,188.18,188.06,3.1857]
[1735570880713,32.00048674,188.16,188.02,5.02]
[1735570880917,32.00048674,188.16,188.02,8.3294]
[1735570881114,5.02,188.18,188.02,8.3294]
[1735570882520,32.00048674,188.22,188.07,32.00048674]
[1735570882815,6.6856,188.24,188.08,1.5848]
[1735570883808,1.6656,188.24,188.1,32.00048674]
[1735570884010,37.02048674,188.28,188.13,32.00048674]
[1735570884215,37.02048674,188.28,188.14,3.3027]
[1735570884512,32.00048674,188.25,188.14,3.3027]
[1735570885015,32.00048674,188.31,188.14,3.3027]
[1735570885217,5.02,188.3,188.14,3.3027]
[1735570885422,32.00048674,188.25,188.14,3.3027]
[1735570885725,32.00048674,188.28,188.14,3.3027]
[1735570885914,32.00048674,188.28,188.14,35.30318674]
[1735570886117,37.02048674,188.34,188.17,32.00048674]
[1735570886323,37.02048674,188.34,188.18,5.02]
[1735570887017,194.0,188.49,188.23,2.6619]
[1735570887216,1.6871,188.44,188.3,32.00048674]
[1735570887415,1.6871,188.44,188.3,37.02048674]
[1735570887617,1.6871,188.44,188.31,1.5765]
[1735570887829,1.6871,188.44,188.33,32.00048674]
[1735570888219,5.02,188.47,188.33,32.00048674]
[1735570888530,32.00048674,188.46,188.31,4.7658]
[1735570888914,5.02,188.47,188.31,4.7658]
[1735570889529,37.02048674,188.49,188.31,4.7658]
[1735570889723,37.02048674,188.49,188.31,7.4266]
[1735570889925,37.02048674,188.49,188.31,4.7658]
[1735570890120,5.02,188.49,188.36,32.00048674]
[1735570890325,1.6741,188.5,188.36,32.00048674]
[1735570890524,5.02,188.49,188.36,32.00048674]
[1735570890718,1.6741,188.5,188.36,32.00048674]
[1735570890928,6.6941,188.5,188.36,32.00048674]
[1735570891226,32.00048674,188.49,188.33,37.02048674]
[1735570891425,32.00048674,188.49,188.31,4.7658]
[1735570891622,32.00048674,188.46,188.31,4.7658]
[1735570891828,6.6941,188.5,188.31,4.7658]
[1735570891829,32.00048674,188.49,188.31,4.7658]
[1735570892015,1.6741,188.5,188.36,2.6601]
[1735570892217,1.6741,188.5,188.39,32.00048674]
[1735570893321,1.6741,188.5,188.36,32.00048674]
[1735570893825,32.00048674,188.49,188.33,32.00048674]
[1735570894025,32.00048674,188.46,188.31,4.7658]
[1735570894328,5.02,188.45,188.31,4.7658]
[1735570894726,6.6286,188.45,188.31,4.7658]
[1735570894919,1.06112054,188.48,188.36,32.00048674]
[1735570895121,1.06112054,188.48,188.39,32.00048674]
[1735570895321,3.284,188.53,188.39,32.00048674]
[1735570896120,1.596,188.54,188.42,32.00048674]
[1735570896328,1.596,188.54,188.43,1.6086]
[1735570896828,5.02,188.57,188.43,1.6086]
[1735570897225,5.02,188.57,188.42,32.00048674]
[1735570897624,5.02,188.57,188.43,1.5868]
[1735570898130,5.02,188.57,188.42,35.18348674]
[1735570898323,5.02,188.57,188.42,3.183]
[1735570899324,32.00048674,188.55,188.39,32.00048674]
[1735570900226,5.02,188.57,188.32,3.183]
[1735570900227,5.02,188.57,188.36,32.00048674]
[1735570900433,32.00048674,188.52,188.36,32.00048674]
[1735570900730,32.00048674,188.55,188.39,32.00048674]
[1735570901031,5.02,188.57,188.42,32.00048674]
[1735570901232,5.02,188.57,188.43,3.2976]
[1735570903630,1.596,188.58,188.43,3.2976]
[1735570903825,6.476,188.58,188.45,32.00048674]
[1735570904829,1.596,188.58,188.44,1.7451]
[1735570905035,32.00048674,188.55,188.43,3.2976]
[1735570905230,32.00048674,188.55,188.43,1.593]
[1735570906333,32.00048674,188.52,188.36,32.00048674]
[1735570906724,32.00048674,188.55,188.36,32.00048674]
[1735570906931,32.00048674,188.55,188.39,32.00048674]
[1735570907233,32.00048674,188.55,188.4,1.5798]
[1735570907527,194.0,188.79,188.49,32.00048674]
[1735570907829,32.00048674,188.63,188.5,3.4154]
[1735570908336,4.88,188.62,188.5,3.4154]
[1735570908630,4.88,188.62,188.5,35.41588674]
[1735570908933,4.88,188.62,188.53,32.00048674]
[1735570909140,55.28,188.71,188.56,32.00048674]
[1735570909141,4.88,188.68,188.56,32.00048674]
[1735570909936,4.88,188.68,188.59,32.00048674]
[1735570911028,32.00048674,188.76,188.59,32.00048674]
[1735570911231,4.88,188.75,188.62,32.00048674]
[1735570912036,35.46158674,188.79,188.62,32.00048674]
[1735570912239,35.46158674,188.79,188.65,32.00048674]
[1735570912240,7.59913426,188.78,188.65,32.00048674]
[1735570913035,2.71913426,188.78,188.65,32.00048674]
[1735570913240,2.71913426,188.78,188.68,32.00048674]
[1735570914140,60.14,188.83,188.71,32.00048674]
[1735570914935,60.14,188.83,188.68,32.00048674]
[1735570915336,32.00048674,188.82,188.64,32.00048674]
[1735570915536,32.00048674,188.79,188.64,32.00048674]
[1735570915840,60.14,188.83,188.63,4.9385]
[1735570915841,32.00048674,188.76,188.63,4.9385]
[1735570916042,4.88,188.75,188.63,4.9385]
[1735570917040,4.88,188.75,188.58,32.00048674]
[1735570917538,4.88,188.75,188.56,9.8688]
[1735570917539,4.88,188.75,188.61,32.00048674]
[1735570918840,4.88,188.75,188.64,32.00048674]
[1735570919233,4.88,188.77,188.64,32.00048674]
[1735570919737,1.6317,188.78,188.67,32.00048674]
[1735570920042,4.88,188.8,188.67,32.00048674]
[1735570920434,1.7016,188.87,188.7,32.00048674]
[1735570920740,0.20171,188.85,188.73,32.00048674]
[1735570921137,5.08171,188.85,188.73,32.00048674]
[1735570921437,0.20171,188.85,188.73,32.00048674]
[1735570922235,0.20171,188.85,188.76,32.00048674]
[1735570922843,0.20171,188.85,188.71,3.3628]
[1735570922844,0.20171,188.85,188.79,32.00048674]
[1735570923147,31.95,189.04,188.79,32.00048674]
[1735570923148,4.88,189.0,188.82,32.00048674]
[1735570923337,4.88,189.0,188.79,4.88]
[1735570923338,1.7062,188.99,188.85,32.00048674]
[1735570923539,4.88,189.0,188.88,32.00048674]
[1735570923739,1.7415,189.02,188.88,32.00048674]
[1735570923933,4.88,189.03,188.91,32.00048674]
[1735570924540,3.3513,189.08,188.94,32.00048674]
[1735570924840,1.7062,189.08,188.94,32.00048674]
[1735570925242,1.7062,189.08,188.94,33.59678674]
[1735570926152,1.6877,189.16,188.97,32.00048674]
[1735570926153,4.88,189.12,188.97,32.00048674]
[1735570926644,32.00048674,189.1,188.95,1.6181]
[1735570926841,36.88048674,189.13,188.95,1.6181]
[1735570927044,37.93796043,189.13,188.95,1.6181]
[1735570927543,37.93796043,189.13,188.97,32.00048674]
[1735570928047,32.00048674,189.1,188.95,1.6181]
[1735570928250,32.00048674,189.07,188.91,32.00048674]
[1735570928545,1.05752961,189.12,188.88,32.00048674]
[1735570928546,32.00048674,189.04,188.88,32.00048674]
[1735570928748,4.88,189.03,188.88,32.00048674]
[1735570928944,6.6191,189.03,188.88,32.00048674]
[1735570929541,32.00048674,189.01,188.85,32.00048674]
[1735570929945,32.00048674,189.01,188.83,4.9176]
[1735570930949,1.05820105,189.0,188.83,4.9176]
[1735570931147,32.00048674,188.98,188.83,4.9176]
[1735570932048,4.98,188.97,188.83,4.9176]
[1735570933247,4.98,188.98,188.83,4.9176]
[1735570933453,36.98048674,188.98,188.83,4.9176]
[1735570933951,4.98,188.97,188.83,4.9176]
[1735570935750,4.98,188.97,188.76,32.00048674]
[1735570935751,32.00048674,188.92,188.76,32.00048674]
[1735570935953,1.5911,188.91,188.76,32.00048674]
[1735570936154,1.5911,188.91,188.75,4.8755]
[1735570936155,32.00048674,188.89,188.75,4.8755]
[1735570936443,4.98,188.9,188.76,32.00048674]
[1735570936655,4.98,188.9,188.79,32.00048674]
[1735570937447,4.98,188.9,188.76,32.00048674]
[1735570938052,4.98,188.9,188.75,4.8755]
[1735570938053,32.00048674,188.89,188.75,4.8755]
[1735570938555,32.00048674,188.86,188.75,4.8755]
[1735570938959,32.00048674,188.83,188.67,32.00048674]
[1735570939154,4.98,188.82,188.68,4.9964]
[1735570939455,32.00048674,188.8,188.68,4.9964]
[1735570940449,32.00048674,188.8,188.68,1.646]
[1735570940656,32.00048674,188.77,188.63,1.5791]
[1735570941356,32.00048674,188.74,188.63,1.5791]
[1735570941550,32.00048674,188.71,188.56,3.3611]
[1735570941758,4.98,188.7,188.56,4.9402]
[1735570942654,32.00048674,188.68,188.56,4.9402]
[1735570943851,32.00048674,188.65,188.49,32.00048674]
[1735570944052,32.00048674,188.65,188.5,4.8906]
[1735570945254,32.00048674,188.62,188.5,4.8906]
[1735570945458,5.0,188.61,188.5,4.8906]
[1735570945652,5.0,188.61,188.5,1.6151]
[1735570945853,5.0,188.61,188.43,32.00048674]
[1735570946058,32.00048674,188.59,188.43,32.00048674]
[1735570946555,5.0,188.58,188.43,32.00048674]
[1735570946957,5.0,188.58,188.44,2.6592]
[1735570947258,5.0,188.58,188.46,32.00048674]
[1735570948152,5.0,188.6,188.46,32.00048674]
[1735570948361,5.0,188.59,188.46,32.00048674]
[1735570948957,5.0,188.59,188.43,32.00048674]
[1735570949160,32.00048674,188.58,188.43,32.00048674]
[1735570949360,33.61268674,188.58,188.43,32.00048674]
[1735570949553,32.00048674,188.55,188.41,4.9724]
[1735570950064,32.00048674,188.52,188.41,1.6151]
[1735570950260,5.0,188.51,188.35,1.6294]
[1735570950457,5.0,188.51,188.35,3.2679]
[1735570950655,32.00048674,188.49,188.35,3.2679]
[1735570950965,1.6122,188.48,188.35,3.2679]
[1735570951159,1.6122,188.48,188.35,35.26838674]
[1735570951460,5.0,188.51,188.35,35.26838674]
[1735570951663,5.0,188.51,188.35,37.92868674]
[1735570951861,5.0,188.51,188.38,32.00048674]
[1735570952159,32.00048674,188.56,188.38,32.00048674]
[1735570952358,5.0,188.55,188.38,32.00048674]
[1735570952664,5.0,188.55,188.41,32.00048674]
[1735570952855,32.00048674,188.59,188.42,1.6348]
[1735570953163,5.0,188.57,188.42,1.6348]
[1735570953764,32.00048674,188.56,188.42,1.6348]
[1735570954055,19.3843,188.62,188.42,1.6348]
[1735570954056,37.00048674,188.55,188.42,1.6348]
[1735570954453,5.0,188.55,188.42,1.6348]
[1735570956664,37.00048674,188.55,188.42,1.6348]
[1735570957964,32.00048674,188.52,188.35,35.26838674]
[1735570958259,32.00048674,188.52,188.36,1.6776]
[1735570959764,1.6558,188.51,188.36,1.6776]
[1735570960265,32.00048674,188.49,188.36,1.6776]
[1735570960463,4.84,188.48,188.36,1.6776]
[1735570961161,4.84,188.54,188.4,32.00048674]
[1735570961866,4.84,188.54,188.37,32.00048674]
[1735570962460,32.00048674,188.53,188.37,32.00048674]
[1735570963256,32.00048674,188.53,188.36,1.6776]
[1735570963458,1.6173,188.52,188.36,1.6776]
[1735570963865,1.6173,188.52,188.37,32.00048674]
[1735570964066,4.84,188.51,188.37,32.00048674]
[1735570965065,32.00048674,188.5,188.36,1.6776]
[1735570965663,1.6173,188.52,188.36,1.6776]
[1735570965868,4.84,188.51,188.37,32.00048674]
[1735570966770,4.84,188.51,188.36,1.6776]
[1735570967665,1.06100795,188.5,188.36,1.6776]
[1735570969772,32.00048674,188.48,188.31,32.00048674]
[1735570969970,3.3257,188.47,188.31,32.00048674]
[1735570970163,3.3257,188.47,188.34,32.00048674]
[1735570970369,4.84,188.46,188.34,19.5280352]
[1735570970877,4.84,188.45,188.34,19.5280352]
[1735570971268,4.84,188.46,188.34,19.5280352]
[1735570972071,1.06100795,188.5,188.34,19.5280352]
[1735570972262,4.84,188.49,188.34,22.1886352]
[1735570972469,4.84,188.49,188.34,19.5280352]
[1735570973379,19.5280352,188.48,188.32,3.2663]
[1735570974573,19.5280352,188.45,188.32,1.6027]
[1735570974773,1.5916,188.44,188.32,1.6027]
[1735570975678,1.5916,188.44,188.32,3.2747]
[1735570977170,1.5916,188.44,188.25,7.27346213]
[1735570977171,19.5280352,188.41,188.25,7.27346213]
[1735570977372,1.5916,188.44,188.25,7.27346213]
[1735570977373,19.5280352,188.37,188.25,7.27346213]
[1735570977577,19.5280352,188.37,188.24,29.09384853]
[1735570977975,19.5280352,188.33,188.24,29.09384853]
[1735570978180,6.6003,188.32,188.24,29.09384853]
[1735570979182,6.6003,188.32,188.16,24.4940352]
[1735570979385,1.7603,188.32,188.16,24.4940352]
[1735570979684,4.84,188.31,188.16,24.4940352]
[1735570980182,4.84,188.31,188.2,19.5280352]
[1735570980376,4.86,188.32,188.2,19.5280352]
[1735570981392,4.86,188.34,188.23,22.1902352]
[1735570981781,4.86,188.34,188.23,19.5280352]
[1735570981984,4.86,188.34,188.19,24.3880352]
[1735570982183,4.86,188.34,188.19,19.5280352]
[1735570982578,24.3880352,188.34,188.19,19.5280352]
[1735570982779,24.3880352,188.34,188.16,53.58788373]
[1735570982976,19.5280352,188.31,188.16,53.58788373]
[1735570983187,1.7313,188.3,188.16,34.05984853]
[1735570983387,5.0802,188.3,188.16,34.05984853]
[1735570983585,19.5280352,188.28,188.16,34.05984853]
[1735570983782,4.86,188.27,188.16,34.05984853]
[1735570983986,4.86,188.27,188.16,4.966]
[1735570984381,4.86,188.27,188.16,3.2873]
[1735570984584,31.80833144,188.22,188.11,1.6352]
[1735570985486,4.86,188.27,188.11,1.6352]
[1735570985487,31.80833144,188.25,188.11,1.6352]
[1735570985786,4.86,188.24,188.11,1.6352]
[1735570986581,4.86,188.23,188.11,1.6352]
[1735570986980,4.86,188.22,188.11,1.6352]
[1735570987182,4.86,188.22,188.11,4.2991]
[1735570987491,31.80833144,188.28,188.11,33.44353144]
[1735570987787,4.86,188.27,188.11,33.44353144]
[1735570988582,4.86,188.27,188.11,36.10763144]
[1735570989180,31.80833144,188.25,188.11,1.6352]
[1735570990690,4.64,188.24,188.11,1.6352]
[1735570991397,31.80833144,188.22,188.08,1.6217]
[1735570992188,1.7495,188.21,188.08,1.6217]
[1735570993092,4.64,188.2,188.08,33.43003144]
[1735570993398,31.80833144,188.28,188.11,31.80833144]
[1735570993690,194.0,188.36,188.11,31.80833144]
[1735570993691,4.64,188.27,188.14,31.80833144]
[1735570993892,4.64,188.26,188.14,31.80833144]
[1735570994092,4.64,188.26,188.12,1.6981]
[1735570994482,31.80833144,188.25,188.12,1.6981]
[1735570994680,33.55783144,188.25,188.12,1.6981]
[1735570995493,31.80833144,188.22,188.08,1.6217]
[1735570995992,4.64,188.21,188.08,1.6217]
[1735570996191,1.06247343,188.24,188.11,2.6641]
[1735570996392,1.06247343,188.24,188.11,31.80833144]
[1735570997088,4.64,188.29,188.14,31.80833144]
[1735570997292,31.80833144,188.31,188.15,1.6243]
[1735570997495,4.64,188.29,188.15,1.6243]
[1735570997692,1.7316,188.33,188.15,1.6243]
[1735570997893,4.64,188.33,188.21,31.80833144]
[1735570998087,4.64,188.33,188.22,1.6425]
[1735570998388,58.6743,188.36,188.22,3.3437]
[1735570998389,57.0863,188.36,188.22,3.3437]
[1735570998589,4.64,188.37,188.24,31.80833144]
[1735570998788,4.64,188.37,188.25,1.631]
[1735570999798,4.64,188.37,188.22,3.3437]
[1735571000090,31.80833144,188.35,188.22,3.3437]
[1735571000690,31.80833144,188.35,188.22,1.6425]
[1735571000888,31.80833144,188.32,188.2,1.631]
[1735571001096,1.6531,188.31,188.14,3.3021]
[1735571001291,4.64,188.3,188.14,1.6535]
[1735571001493,4.64,188.3,188.14,3.3021]
[1735571001688,36.44833144,188.29,188.14,3.3021]
[1735571002592,31.80833144,188.26,188.14,3.3021]
[1735571002793,31.80833144,188.26,188.11,1.6088]
[1735571002987,1.706,188.25,188.11,1.6088]
[1735571003191,31.80833144,188.23,188.11,1.6088]
[1735571003394,4.64,188.22,188.11,1.6088]
[1735571004699,1.706,188.25,188.15,31.80833144]
[1735571004894,4.64,188.28,188.15,31.80833144]
[1735571006504,4.64,188.28,188.12,3.3305]
[1735571006996,4.64,188.28,188.13,2.6638]
[1735571007195,4.64,188.28,188.12,3.3305]
[1735571007389,4.64,188.28,188.14,31.80833144]
[1735571008298,36.44833144,188.28,188.12,3.3305]
[1735571008895,9.45114334,188.27,188.12,3.3305]
[1735571009703,4.64,188.31,188.17,31.80833144]
[1735571009903,4.64,188.32,188.17,31.80833144]
[1735571010097,4.64,188.32,188.2,31.80833144]
[1735571010302,4.64,188.32,188.23,31.80833144]
[1735571010500,4.64,188.32,188.24,1.7374]
[1735571010706,4.64,188.32,188.24,4.3997]
[1735571010901,4.64,188.32,188.24,1.7374]
[1735571011096,9.48864738,188.39,188.24,1.7374]
[1735571011305,4.64,188.36,188.24,1.7374]
[1735571011804,4.64,188.36,188.25,2.6622]
[1735571012000,4.64,188.36,188.24,1.7374]
[1735571012194,4.64,188.36,188.24,4.3997]
[1735571012394,31.80833144,188.43,188.26,31.80833144]
[1735571012599,9.49131695,188.39,188.29,31.80833144]
[1735571012796,9.49131695,188.39,188.3,1.7216]
[1735571013203,9.49131695,188.41,188.3,1.7216]
[1735571013706,18.96351718,188.41,188.3,1.7216]
[1735571014410,31.80833144,188.4,188.3,1.7216]
[1735571014612,18.96351718,188.39,188.3,1.7216]
[1735571015108,9.49131695,188.39,188.3,1.7216]
[1735571015298,4.64,188.4,188.3,1.7216]
[1735571015807,14.13131695,188.41,188.3,1.7216]
[1735571016011,4.64,188.42,188.3,1.7216]
[1735571016411,9.50559662,188.45,188.32,34.46953144]
[1735571016604,9.50559662,188.45,188.32,31.80833144]
[1735571016813,9.50559662,188.47,188.32,31.80833144]
[1735571017012,4.64,188.46,188.34,2.6609]
[1735571017209,4.64,188.46,188.35,1.716]
[1735571019514,36.44833144,188.46,188.35,1.716]
[1735571019904,9.48271299,188.45,188.35,1.716]
[1735571020116,18.98470105,188.45,188.33,1.6778]
[1735571020313,19.54177025,188.44,188.33,1.6778]
[1735571020616,18.98470105,188.43,188.33,1.6778]
[1735571020811,9.50198806,188.43,188.33,1.6778]
[1735571021314,14.24198806,188.43,188.33,1.6778]
[1735571021512,1.6622,188.48,188.33,21.21957025]
[1735571021711,4.74,188.47,188.33,21.21957025]
[1735571021912,4.74,188.47,188.33,1.6778]
[1735571022113,24.28177025,188.47,188.33,1.6778]
[1735571022314,4.74,188.47,188.33,1.6778]
[1735571022717,23.72419015,188.48,188.33,1.6778]
[1735571022916,14.2416333,188.48,188.33,6.4178]
[1735571023116,9.5016333,188.48,188.35,34.39818401]